bitfinex/quotes_ETHUSD_20220215
["timestamp","ask_amount","ask_price","bid_price","bid_amount"]
[1644925742939,1.5259659,3109.2,3108.8,1.60808]
[1644925743137,0.7218159,3109.2,3108.9,0.80415]
[1644925745441,0.7218159,3109.2,3108.9,1.80415]
[1644925745690,0.7218159,3109.2,3108.9,2.9081963]
[1644925745891,0.41357254,3109.2,3108.9,6.4081963]
[1644925746093,0.41357254,3109.2,3109.0,0.463]
[1644925746292,0.41357254,3109.2,3109.0,0.763]
[1644925746494,0.0178459,3109.2,3109.0,0.763]
[1644925746697,0.01462848,3109.2,3109.1,0.80403]
[1644925746892,0.01462848,3109.2,3109.1,5.42231968]
[1644925747293,0.01462848,3109.2,3109.1,5.88531968]
[1644925748295,0.01462848,3109.2,3109.1,2.26703]
[1644925748502,0.01462848,3109.2,3109.1,5.40407644]
[1644925748799,0.80403,3109.7,3109.1,5.40407644]
[1644925748800,0.2,3110.0,3109.3,7.7039015]
[1644925748996,0.2,3110.0,3109.5,0.80381]
[1644925748997,8.665e-05,3109.8,3109.5,0.80381]
[1644925749203,8.665e-05,3109.8,3109.6,0.463]
[1644925749444,0.128789,3110.1,3109.8,25.78]
[1644925749642,0.128789,3110.1,3109.9,10.1987]
[1644925749839,0.128789,3110.1,3109.9,7.9987]
[1644925750039,0.128789,3110.1,3109.9,8.80242]
[1644925750243,0.01682112,3111.1,3109.9,12.80242]
[1644925750442,0.80381,3110.4,3110.0,22.38]
[1644925750643,0.01682112,3111.1,3110.3,0.5]
[1644925750841,0.01682112,3111.1,3110.4,0.803742]
[1644925751045,0.01682112,3111.1,3110.5,0.80374]
[1644925751046,0.04263176,3111.0,3110.5,0.80374]
[1644925751442,0.84581333,3110.9,3110.5,0.80374]
[1644925751845,0.04149491,3110.8,3110.5,0.80374]
[1644925752043,0.04149491,3110.8,3110.3,0.5]
[1644925752342,0.04092649,3110.7,3110.2,1.1401]
[1644925752543,0.04092649,3110.7,3109.9,6.2357]
[1644925752544,1.64881649,3110.7,3109.9,6.2357]
[1644925752742,0.04035806,3110.6,3109.7,0.0008]
[1644925753309,4.14035806,3110.6,3109.7,0.0008]
[1644925753508,4.14035806,3110.6,3109.8,0.80398]
[1644925753708,0.00301665,3110.3,3109.8,0.75398]
[1644925754108,0.00301665,3110.3,3109.9,3.17046783]
[1644925754310,0.00301665,3110.3,3109.9,4.77820783]
[1644925754517,0.00301665,3110.3,3110.2,0.5]
[1644925754710,0.04035806,3110.6,3110.2,0.5]
[1644925754711,0.80374,3110.5,3110.2,0.5]
[1644925754912,0.80374,3110.5,3110.1,0.463]
[1644925754913,0.80374,3110.5,3110.1,3.963]
[1644925755111,0.00301665,3110.3,3110.1,0.963]
[1644925755415,0.00301665,3110.3,3110.0,1.5]
[1644925755615,0.00301665,3110.3,3110.0,0.5]
[1644925755912,0.04035806,3110.6,3109.7,1.4638]
[1644925755913,2.41176,3110.5,3109.7,1.4638]
[1644925756112,1.61085665,3110.3,3109.7,0.4638]
[1644925756312,1.61085665,3110.3,3109.7,1.463]
[1644925756512,1.61085665,3110.3,3109.9,0.80388]
[1644925756713,1.61085665,3110.3,3110.0,3.17142647]
[1644925756936,1.61085665,3110.3,3110.1,3.16958222]
[1644925757141,1.60784,3110.3,3110.0,0.5]
[1644925757336,1.60784,3110.3,3109.8,4.43521555]
[1644925757337,1.35730665,3110.3,3109.8,4.43521555]
[1644925757538,1.34350665,3110.3,3109.9,0.5]
[1644925757737,1.34350665,3110.3,3109.9,1.3039]
[1644925758339,1.34049,3110.3,3109.9,1.3039]
[1644925758539,1.34350665,3110.3,3110.0,0.5]
[1644925758740,1.34350665,3110.3,3110.1,0.5]
[1644925759339,1.34350665,3110.3,3110.2,0.5]
[1644925759540,1.34049,3110.3,3110.1,1.30387]
[1644925759742,1.56067665,3110.4,3110.1,1.30387]
[1644925759939,1.56067665,3110.4,3110.2,0.5]
[1644925760141,1.56067665,3110.4,3110.3,19.38]
[1644925760142,0.00903041,3110.4,3110.3,19.38]
[1644925760346,5.806e-05,3110.6,3110.5,18.88]
[1644925760542,5.806e-05,3110.6,3110.5,19.68365]
[1644925760798,5.806e-05,3110.6,3110.5,1.5]
[1644925760999,5.806e-05,3110.6,3110.5,0.5]
[1644925761199,5.806e-05,3110.6,3110.4,2.7955]
[1644925761499,5.806e-05,3110.6,3110.4,2.0703]
[1644925761903,5.806e-05,3110.6,3110.4,3.0703]
[1644925762103,5.806e-05,3110.6,3110.4,0.463]
[1644925762502,5.806e-05,3110.6,3110.3,2.60746]
[1644925762503,5.806e-05,3110.6,3110.3,1.3]
[1644925762899,5.806e-05,3110.6,3110.3,0.8]
[1644925763202,5.806e-05,3110.6,3110.1,9.1262]
[1644925763203,1.60767,3110.5,3110.1,9.1262]
[1644925763400,5.806e-05,3110.6,3110.2,1.6073235]
[1644925763599,5.806e-05,3110.6,3110.2,2.4110335]
[1644925764645,5.806e-05,3110.6,3110.3,2.41074]
[1644925764646,0.00096456,3110.6,3110.3,2.41074]
[1644925764848,0.00096456,3110.6,3110.3,3.41074]
[1644925765045,0.00362546,3111.0,3110.4,6.9]
[1644925765247,0.00362546,3111.0,3110.5,2.06638]
[1644925765448,0.01682112,3111.1,3110.5,26.24976]
[1644925765646,0.01682112,3111.1,3110.9,0.5]
[1644925765847,0.01682112,3111.1,3111.0,0.5]
[1644925766447,0.01682112,3111.1,3111.0,0.80331]
[1644925766846,0.01682112,3111.1,3111.0,1.30331]
[1644925767046,0.01682112,3111.1,3111.0,7.53131]
[1644925767450,0.01682112,3111.1,3111.0,7.03131]
[1644925767647,0.01682112,3111.1,3111.0,10.24594503]
[1644925767848,0.01682112,3111.1,3111.0,10.74594503]
[1644925768291,0.01682112,3111.1,3111.0,10.24594503]
[1644925768487,0.01682112,3111.1,3111.0,10.74594503]
[1644925768887,0.01682112,3111.1,3111.0,7.03131]
[1644925769288,0.01682112,3111.1,3111.0,0.80331]
[1644925769489,0.01682112,3111.1,3110.7,0.5]
[1644925769691,0.01682112,3111.1,3110.6,1.60712]
[1644925770095,0.01682112,3111.1,3110.6,4.80242086]
[1644925770688,0.01682112,3111.1,3110.8,0.80354]
[1644925770689,0.00300685,3111.0,3110.8,0.80354]
[1644925771090,3.23346744,3112.3,3110.9,6.9]
[1644925771290,0.01931744,3112.3,3110.9,11.163]
[1644925771493,0.01943504,3112.9,3112.2,5.79]
[1644925771691,0.01943504,3112.9,3112.3,10.4]
[1644925771693,2.50903068,3112.8,3112.3,10.4]
[1644925771978,2.50903068,3112.8,3112.7,5.79]
[1644925772351,2.50903068,3112.8,3112.7,7.0559864]
[1644925772551,2.50903068,3112.8,3112.7,6.253]
[1644925772754,0.00903068,3112.8,3112.7,7.05606]
[1644925772949,0.00903068,3112.8,3112.7,1.26606]
[1644925773350,2.49840996,3112.9,3112.6,1.42043177]
[1644925773552,0.5,3112.8,3112.6,1.42043177]
[1644925774150,0.01994424,3112.9,3112.6,0.98082653]
[1644925774353,0.01994424,3112.9,3111.6,8.62989997]
[1644925774354,1.45775368,3112.5,3111.6,8.62989997]
[1644925774551,1.45775368,3112.5,3111.6,8.0287]
[1644925774750,1.75775368,3112.5,3111.5,4.6824]
[1644925774950,1.75775368,3112.5,3111.9,1.60655]
[1644925774951,1.45775368,3112.5,3111.9,1.60655]
[1644925775151,2.05775368,3112.5,3112.0,0.80335]
[1644925775556,1.01806136,3112.6,3112.0,0.80335]
[1644925775557,9.45e-06,3112.6,3112.2,6.9]
[1644925775794,0.00188288,3112.9,3112.5,5.79]
[1644925775996,0.5,3112.8,3112.6,3.963]
[1644925776193,0.5,3112.8,3112.6,0.463]
[1644925776393,8.288e-05,3112.9,3112.6,0.463]
[1644925776594,8.288e-05,3112.9,3112.7,0.5]
[1644925776794,8.288e-05,3112.9,3112.6,1.763]
[1644925776795,0.01516763,3113.3,3112.9,6.9]
[1644925776993,0.01516763,3113.3,3113.0,0.463]
[1644925777194,0.01516763,3113.3,3113.0,1.463]
[1644925777394,0.01516763,3113.3,3112.7,1.1376]
[1644925778001,0.01516763,3113.3,3112.9,1.60589]
[1644925778195,0.01371788,3113.3,3113.1,6.9]
[1644925778401,5.364e-05,3113.3,3113.2,0.463]
[1644925778695,2.47846572,3113.6,3113.2,1.97551975]
[1644925778893,2.47846572,3113.6,3113.2,1.963]
[1644925779093,0.94992787,3113.7,3113.2,2.76568]
[1644925779294,0.01,3114.1,3113.2,0.80268]
[1644925779751,0.01,3114.1,3113.3,0.463]
[1644925779953,6.572e-05,3113.6,3113.4,12.9998734]
[1644925780153,0.02423588,3114.2,3114.0,0.5]
[1644925780154,0.0161882,3114.2,3114.0,0.5]
[1644925780350,0.01517126,3115.0,3114.1,7.313]
[1644925780351,0.13806988,3115.0,3114.1,7.313]
[1644925780552,0.13806988,3115.0,3114.2,6.1098]
[1644925780750,0.00947988,3115.0,3114.4,0.5]
[1644925780952,0.00947988,3115.0,3114.5,0.463]
[1644925781149,0.00947988,3115.0,3114.5,0.963]
[1644925781351,0.00947988,3115.0,3114.6,1.6047]
[1644925781552,0.00947988,3115.0,3114.7,0.463]
[1644925781553,0.00293756,3114.9,3114.7,0.463]
[1644925782147,0.00293756,3114.9,3114.8,0.5]
[1644925782350,0.00293756,3114.9,3114.8,0.963]
[1644925782551,0.00487476,3114.9,3114.6,1.30239]
[1644925782749,0.00487476,3114.9,3114.7,0.463]
[1644925783598,0.01487476,3114.9,3114.7,0.463]
[1644925784203,0.01487476,3114.9,3114.7,0.763]
[1644925784397,0.01487476,3114.9,3114.7,0.463]
[1644925784599,0.01487476,3114.9,3114.8,0.5]
[1644925784799,0.01487476,3114.9,3114.8,0.963]
[1644925784997,0.96890741,3114.9,3114.6,0.80239]
[1644925785398,0.96890741,3114.9,3114.2,1.6051]
[1644925785601,0.96890741,3114.9,3113.7,5.8099]
[1644925785602,3.5,3114.8,3113.6,0.5]
[1644925785804,3.5,3114.8,3113.5,1.0151]
[1644925785805,0.3,3114.4,3113.5,1.0151]
[1644925785998,0.3,3114.4,3112.6,0.25]
[1644925785999,5.0,3113.7,3112.6,0.25]
[1644925786197,5.1,3113.9,3111.6,1.58668221]
[1644925786198,5.0,3113.2,3111.7,2.9558]
[1644925786401,5.0,3113.0,3111.7,3.5]
[1644925786601,0.001,3112.9,3111.7,3.5]
[1644925786798,1.80655559,3112.1,3111.7,3.5]
[1644925787044,1.60988533,3112.0,3111.4,0.80332]
[1644925787244,1.60988533,3112.0,3111.2,1.60659]
[1644925787447,1.60988533,3112.0,3111.1,0.25]
[1644925787448,0.80376,3111.6,3111.1,0.25]
[1644925787650,5.00318533,3111.5,3110.1,0.25]
[1644925787847,5.00318533,3111.5,3109.9,4.8779]
[1644925787848,0.91342116,3110.5,3109.9,4.8779]
[1644925788047,0.91342116,3110.5,3109.9,0.99574]
[1644925789044,1.71719116,3110.5,3109.9,0.99574]
[1644925789644,1.71719116,3110.5,3110.0,0.80367]
[1644925789843,1.71719116,3110.5,3110.0,0.80697724]
[1644925790045,0.00318533,3110.6,3110.0,0.80697724]
[1644925790244,0.80356,3110.9,3110.0,0.80697724]
[1644925790445,0.00318533,3110.8,3110.0,0.80697724]
[1644925790689,0.00318533,3111.2,3110.0,0.80697724]
[1644925790890,0.00318533,3111.2,3110.0,0.80367]
[1644925791094,0.00318533,3111.2,3110.2,0.00330708]
[1644925791095,0.9435739,3111.2,3110.2,0.00330708]
[1644925791289,1.7470639,3111.2,3110.2,0.00330708]
[1644925791492,1.7470639,3111.2,3110.3,0.80356]
[1644925792093,1.7470639,3111.2,3110.4,0.16242308]
[1644925792094,0.80667533,3111.2,3110.4,0.16242308]
[1644925792293,0.80667533,3111.2,3110.6,0.00330681]
[1644925792890,0.00318533,3111.2,3110.6,0.00330681]
[1644925793191,0.00318533,3111.2,3110.1,1.0]
[1644925793192,0.94189029,3111.3,3110.3,0.5]
[1644925793492,0.00318533,3111.2,3110.7,1.60995293]
[1644925793892,0.00318533,3111.2,3110.7,0.00319293]
[1644925794547,0.00318533,3111.2,3110.5,1.60691]
[1644925794742,0.00318533,3111.2,3110.8,0.00319289]
[1644925795139,0.94189029,3111.3,3110.8,0.00319289]
[1644925795140,1.63922108,3111.3,3110.8,0.00319289]
[1644925795541,0.80345,3111.3,3110.8,0.00319289]
[1644925795743,0.80345,3111.3,3110.5,1.60691]
[1644925795941,0.2548,3111.6,3110.9,0.00319281]
[1644925796546,1.0582,3111.6,3110.9,0.00319281]
[1644925796742,0.84891316,3111.3,3110.9,0.00319281]
[1644925797043,0.2548,3111.6,3110.5,1.60691]
[1644925797242,0.2548,3111.6,3111.1,0.00320034]
[1644925797644,1.0582,3111.6,3111.1,0.00320034]
[1644925798042,1.06786858,3111.5,3111.1,0.80339]
[1644925798297,0.2548,3111.6,3111.2,0.00320027]
[1644925798495,0.80342,3111.5,3111.2,0.00320027]
[1644925799297,1.83464988,3111.5,3110.8,1.60671]
[1644925799497,0.2548,3111.6,3111.2,0.00320027]
[1644925800498,0.001,3112.6,3110.9,0.686]
[1644925800499,0.954054,3112.1,3110.9,1.7627053]
[1644925800797,0.01,3111.1,3110.9,1.7627053]
[1644925801099,0.00722203,3111.1,3110.9,0.686]
[1644925801946,0.00722203,3111.1,3111.0,0.80334]
[1644925802346,0.00722203,3111.1,3111.0,1.80334]
[1644925802646,0.00722203,3111.1,3111.0,0.80334]
[1644925802848,0.00722203,3111.1,3110.9,1.60667]
[1644925803051,0.00722203,3111.1,3110.4,0.5]
[1644925803052,1.61463293,3111.1,3110.4,0.5]
[1644925803248,1.61463293,3111.1,3110.1,7.8795]
[1644925803249,4.9790988,3111.1,3110.1,7.8795]
[1644925803447,4.9790988,3111.1,3110.9,0.00319997]
[1644925803448,3.3716879,3111.1,3110.9,0.00319997]
[1644925803648,0.00722203,3111.1,3110.9,0.00319997]
[1644925803849,1.10752255,3111.0,3110.9,0.00319997]
[1644925804053,4.60669889,3111.0,3110.2,1.60707]
[1644925804450,1.10752255,3111.0,3110.8,0.00320005]
[1644925804648,4.54046246,3111.0,3110.8,0.00320005]
[1644925804852,4.47144809,3111.0,3110.8,0.00320005]
[1644925805050,1.10752255,3111.0,3110.8,0.00320005]
[1644925805249,1.10752255,3111.0,3110.1,1.2179]
[1644925805250,1.91116255,3111.0,3110.1,1.2179]
[1644925805451,1.91116255,3111.0,3109.6,1.60738]
[1644925805692,0.8036997,3110.9,3109.6,1.60738]
[1644925805894,4.3038,3110.8,3109.4,0.25]
[1644925806097,4.3038,3110.8,3109.2,3.76538]
[1644925806098,5.40773,3110.8,3109.2,3.76538]
[1644925806296,0.3,3110.5,3109.2,2.9615]
[1644925806493,0.96441829,3109.9,3109.2,2.9615]
[1644925806699,4.1,3110.5,3109.0,3.36438266]
[1644925806997,0.8038922,3110.0,3109.0,3.08408994]
[1644925807193,1.60784,3109.8,3109.0,3.08408994]
[1644925807395,0.80389,3109.8,3109.0,1.88408994]
[1644925807593,0.00722203,3111.1,3109.0,1.88408994]
[1644925807594,3.5,3110.8,3109.0,1.88408994]
[1644925807794,0.00722203,3111.1,3109.0,1.88408994]
[1644925807795,3.50722203,3111.1,3109.0,1.88408994]
[1644925807994,3.50722203,3111.1,3109.2,0.00341676]
[1644925808196,1.16570488,3110.3,3109.2,0.00341676]
[1644925808794,6.57325488,3110.3,3109.0,2.88415994]
[1644925808996,6.57325488,3110.3,3108.9,5.1735]
[1644925808997,0.3,3110.2,3108.9,5.1735]
[1644925809300,0.80415,3109.7,3108.6,0.25]
[1644925809561,1.08856072,3108.9,3108.0,0.1607]
[1644925809756,1.08856072,3108.9,3107.3,0.1272]
[1644925809757,3.85,3108.7,3107.0,0.1312]
[1644925809952,3.85,3108.7,3106.9,0.25]
[1644925809953,3.886,3108.6,3106.9,0.25]
[1644925810154,0.31229781,3108.5,3106.7,5.169]
[1644925810356,0.31229781,3108.5,3106.2,0.75]
[1644925810357,5.0,3107.8,3106.2,0.75]
[1644925810653,5.0,3107.8,3106.5,10.0]
[1644925810654,3.65431,3107.8,3106.5,10.0]
[1644925810851,0.43496,3108.2,3106.3,10.0]
[1644925811053,1.3,3108.5,3106.4,2.54006009]
[1644925811251,0.3,3108.5,3106.5,10.0]
[1644925811457,3.5,3108.4,3106.5,10.0]
[1644925811653,0.80451,3108.0,3106.5,10.80456]
[1644925812053,2.41336,3108.0,3106.5,10.80456]
[1644925812253,0.3,3108.2,3106.5,10.80456]
[1644925812453,3.5,3108.5,3106.8,1.60868]
[1644925812454,0.80441,3108.0,3106.8,1.60868]
[1644925812855,0.80441,3108.0,3107.1,0.00342064]
[1644925813192,0.80441,3108.0,3107.3,0.80431]
[1644925813399,3.5,3108.8,3107.3,0.80431]
[1644925813400,0.8043,3108.2,3107.3,0.80431]
[1644925813796,3.5,3108.8,3107.3,1.10431]
[1644925813995,1.60837,3110.1,3107.3,1.10431]
[1644925813996,3.5,3109.4,3107.4,4.3342284]
[1644925814195,0.5,3109.8,3107.6,0.00342022]
[1644925814398,0.5,3109.8,3108.3,0.93219942]
[1644925814399,0.80398,3109.3,3108.3,0.93219942]
[1644925814593,0.80398,3109.3,3107.7,0.386]
[1644925814895,4.97590445,3109.2,3107.7,0.686]
[1644925815093,1.6084171,3109.2,3107.7,0.686]
[1644925815298,3.5,3109.5,3108.3,0.0034196]
[1644925815495,0.8042,3109.1,3108.3,0.0034196]
[1644925815695,0.80423,3108.9,3108.3,0.0034196]
[1644925815896,3.5,3109.8,3108.3,0.0034196]
[1644925816094,0.43496,3110.1,3108.1,2.78954907]
[1644925816095,3.5,3110.0,3108.1,2.78954907]
[1644925816293,0.43496,3110.1,3108.3,1.60799]
[1644925816494,3.5,3110.0,3108.4,0.00259538]
[1644925816951,0.80385,3109.8,3108.4,0.00259538]
[1644925817348,0.80385,3109.8,3108.4,0.80405]
[1644925817349,54.05944688,3109.7,3108.4,0.80405]
[1644925817554,54.05944688,3109.7,3108.9,0.00253086]
[1644925817751,46.0,3109.6,3108.9,0.00253086]
[1644925818051,0.80397,3109.4,3108.9,0.00253086]
[1644925818255,0.8549694,3109.2,3108.9,0.00253086]
[1644925818652,0.8549694,3109.2,3108.2,1.0]
[1644925818854,0.8549694,3109.2,3108.9,0.0025309]
[1644925819253,1.1549694,3109.2,3108.9,0.0025309]
[1644925819457,0.80418,3109.1,3108.9,0.0025309]
[1644925819953,3.3671661,3109.0,3107.9,0.25]
[1644925820158,0.80418,3109.1,3108.8,0.00340803]
[1644925820357,0.8549694,3109.2,3108.8,0.00340803]
[1644925820553,3.41816948,3109.7,3108.8,0.00340803]
[1644925820554,0.80406,3109.6,3108.8,0.00340803]
[1644925820802,0.80414,3109.2,3108.8,0.00340803]
[1644925821003,0.80414,3109.2,3108.0,0.80414]
[1644925821204,0.80414,3109.2,3109.0,0.00320905]
[1644925821601,1.85343054,3109.2,3109.0,0.00320905]
[1644925822205,1.85343054,3109.2,3108.0,1.10414]
[1644925822402,1.85343054,3109.2,3108.9,0.00320913]
[1644925823305,3.79333756,3109.1,3107.9,1.0]
[1644925823508,0.80428,3108.6,3107.8,1.4942]
[1644925823808,0.3,3108.5,3107.0,0.25]
[1644925824005,0.6,3108.5,3107.0,0.25]
[1644925824207,0.99686968,3108.1,3107.0,0.25]
[1644925824446,0.8044398,3108.0,3107.0,0.25]
[1644925824650,1.9088698,3108.0,3107.1,0.80439]
[1644925824847,0.80443,3108.0,3107.6,0.00319392]
[1644925825046,0.3,3108.5,3107.6,0.00319392]
[1644925825248,0.80427,3108.9,3107.6,4.50319392]
[1644925825548,1.10427,3108.9,3107.6,4.50319392]
[1644925825746,1.10427,3108.9,3107.6,1.0]
[1644925826046,1.60852,3108.5,3108.1,0.00319358]
[1644925826246,0.3,3108.4,3108.1,0.00319358]
[1644925826447,1.10436,3108.4,3108.1,0.00319358]
[1644925826646,0.88785792,3108.2,3108.1,0.00319358]
[1644925827047,0.80433,3108.1,3107.3,0.80435]
[1644925827250,0.80433,3108.1,3108.0,0.00319365]
[1644925827448,1.10433,3108.1,3108.0,0.00319365]
[1644925827847,0.3,3108.1,3108.0,0.00319365]
[1644925828295,0.80449,3108.0,3107.2,4.7201]
[1644925828494,0.80449,3108.0,3107.9,0.00319483]
[1644925829296,0.80449,3108.0,3107.2,4.7201]
[1644925829496,0.80449,3108.0,3107.2,1.2201]
[1644925829696,0.80449,3108.0,3107.8,0.0031949]
[1644925830600,0.80449,3108.0,3107.3,3.2801309]
[1644925830895,0.80449,3108.0,3107.7,0.00319494]
[1644925831095,1.60046268,3108.2,3107.7,0.00319494]
[1644925831297,0.0212969,3108.2,3107.7,0.00319494]
[1644925831799,0.0212969,3108.2,3107.6,4.57264193]
[1644925832053,0.80423,3108.1,3107.8,0.00319483]
[1644925833057,0.80423,3108.1,3107.5,6.77745]
[1644925833255,0.80423,3108.1,3107.8,0.00319483]
[1644925833857,0.3,3108.0,3107.8,0.00319483]
[1644925834155,1.10444,3108.0,3107.1,5.169]
[1644925834355,0.80442,3107.8,3107.1,5.169]
[1644925834555,1.90884,3108.0,3107.7,0.00319487]
[1644925834758,1.60884,3108.0,3107.7,0.00319487]
[1644925834959,0.3,3107.9,3107.7,0.00319487]
[1644925835355,1.10442,3107.9,3107.2,1.0]
[1644925835556,1.10442,3107.9,3107.1,5.169]
[1644925835809,0.8044496,3107.7,3107.6,0.00319495]
[1644925836210,1.1044496,3107.7,3107.6,0.00319495]
[1644925836411,2.00198319,3107.7,3107.6,0.00319495]
[1644925836608,2.00198319,3107.7,3106.6,0.80455]
[1644925836609,2.80648319,3107.7,3106.6,0.80455]
[1644925836808,1.1379723,3107.0,3106.6,0.80455]
[1644925837008,0.93024474,3107.0,3106.6,0.80455]
[1644925837208,1.60908,3107.3,3106.6,0.80455]
[1644925837612,0.3,3107.2,3106.6,0.80455]
[1644925838210,1.22237617,3107.2,3106.8,0.00319558]
[1644925838411,0.3,3107.2,3106.8,0.00319558]
[1644925838610,0.80454,3107.0,3106.8,0.00319558]
[1644925838812,1.10454,3107.0,3106.8,0.00319558]
[1644925839011,1.10454,3107.0,3106.8,0.8045]
[1644925839849,0.80454,3107.0,3106.8,0.8045]
[1644925840445,1.60908,3107.3,3106.8,0.8045]
[1644925840846,0.02893423,3106.9,3106.8,0.8045]
[1644925841450,3.423e-05,3106.9,3106.8,4.28897712]
[1644925841750,4.02241,3108.0,3106.9,0.00076577]
[1644925841751,0.80441,3107.5,3106.9,0.00076577]
[1644925841948,2.41346,3108.0,3107.0,0.80431]
[1644925842248,2.41346,3108.0,3107.0,0.3]
[1644925842453,2.41346,3108.0,3107.0,1.23473044]
[1644925842649,0.8043,3107.8,3107.0,0.93473044]
[1644925842854,0.3543,3107.8,3107.0,0.93473044]
[1644925843217,0.3543,3107.8,3107.3,0.00319502]
[1644925843616,1.8916658,3108.0,3107.3,0.00319502]
[1644925843917,1.9089608,3107.9,3107.2,1.0]
[1644925844116,0.80447,3107.7,3107.4,0.00319499]
[1644925844317,0.3,3107.6,3107.4,0.00319499]
[1644925845117,1.60913,3107.5,3107.1,1.76]
[1644925845316,1.60913,3107.5,3107.3,0.00232064]
[1644925846116,0.02548977,3107.4,3107.1,1.76]
[1644925846316,0.02548977,3107.4,3107.1,6.929]
[1644925846317,0.83000977,3107.4,3107.1,6.929]
[1644925846517,0.83000977,3107.4,3107.2,0.00319794]
[1644925846717,0.3,3107.3,3107.2,0.00319794]
[1644925846943,0.83000977,3107.4,3107.2,0.80766794]
[1644925847143,0.83000977,3107.4,3107.3,3.27227432]
[1644925847144,0.02548977,3107.4,3107.3,3.27227432]
[1644925847343,0.02548977,3107.4,3107.3,4.30966035]
[1644925847543,8.977e-05,3107.4,3107.3,4.27227432]
[1644925847743,8.977e-05,3107.4,3107.3,5.78455083]
[1644925847941,8.977e-05,3107.4,3107.3,14.82715083]
[1644925848145,8.977e-05,3107.4,3107.3,15.01853879]
[1644925848345,8.977e-05,3107.4,3107.3,15.41995422]
[1644925848942,8.977e-05,3107.4,3107.3,9.32345422]
[1644925849143,8.977e-05,3107.4,3107.3,7.51837432]
[1644925849344,8.977e-05,3107.4,3107.3,7.90437432]
[1644925849549,8.977e-05,3107.4,3107.3,8.09576228]
[1644925849745,8.977e-05,3107.4,3107.3,7.90437432]
[1644925850146,8.977e-05,3107.4,3107.3,8.20437432]
[1644925850345,8.977e-05,3107.4,3107.3,27.77576228]
[1644925850546,0.84686102,3109.4,3107.4,6.9]
[1644925850800,0.80403,3108.9,3108.1,1.22011705]
[1644925850997,0.80403,3108.9,3108.2,1.22011705]
[1644925851395,0.80403,3108.9,3108.2,0.30319719]
[1644925851797,0.80403,3108.9,3108.2,0.00319719]
[1644925851995,0.80403,3108.9,3108.2,1.1790172]
[1644925852197,0.80403,3108.9,3108.3,1.22011705]
[1644925852394,0.80403,3108.9,3108.3,4.54659384]
[1644925852595,0.80403,3108.9,3108.4,0.00319708]
[1644925852797,0.80403,3108.9,3108.4,1.00319708]
[1644925853194,0.80403,3108.9,3108.4,0.00319708]
[1644925853195,1.10403,3108.9,3108.4,0.00319708]
[1644925853397,1.10403,3108.9,3108.1,1.22011705]
[1644925853593,1.60837,3108.8,3108.1,1.22011705]
[1644925853795,1.60837,3108.8,3108.5,0.00319696]
[1644925854666,1.60837,3108.8,3108.2,2.82843705]
[1644925854866,1.60837,3108.8,3108.6,0.80418]
[1644925856365,1.10403,3108.9,3108.6,0.80418]
[1644925856969,0.3,3108.9,3108.6,0.80418]
[1644925857168,1.10404,3109.0,3108.6,0.80418]
[1644925857467,0.80406,3109.6,3108.6,0.8073769]
[1644925857667,1.10406,3109.6,3108.6,0.8073769]
[1644925857869,0.804051,3109.5,3108.6,0.8073769]
[1644925858293,0.804051,3109.5,3108.6,0.80418]
[1644925858495,0.80404,3109.0,3108.9,0.00319667]
[1644925859294,1.10404,3109.0,3108.9,0.00319667]
[1644925859594,1.10404,3109.0,3108.8,0.80725675]
[1644925860094,0.80404,3109.0,3108.8,0.80725675]
[1644925860296,2.4119412,3109.6,3108.9,3.21198123]
[1644925860499,0.43496,3110.3,3109.2,0.80388]
[1644925860695,1.36782726,3110.2,3109.2,0.80388]
[1644925861102,1.36782726,3110.2,3109.2,4.07799755]
[1644925861298,0.80383,3110.0,3109.2,4.07799755]
[1644925861943,0.80383,3110.0,3109.2,0.80388]
[1644925862151,0.3,3109.9,3109.4,0.00320244]
[1644925862348,0.80397,3109.8,3109.4,0.80717244]
[1644925862546,1.6079046,3109.8,3109.4,0.80717244]
[1644925862747,1.6079046,3109.8,3109.4,0.79860445]
[1644925862947,1.6079046,3109.8,3109.3,1.60785]
[1644925863147,1.16902966,3109.7,3109.3,1.60785]
[1644925863348,2.71211,3109.7,3109.3,1.60785]
[1644925864350,0.80405,3109.6,3109.4,3.37616482]
[1644925864650,0.80405,3109.6,3109.3,1.60785]
[1644925864651,0.3,3109.7,3109.3,1.60785]
[1644925864848,1.05111829,3110.2,3109.3,1.60785]
[1644925865049,1.35111829,3110.2,3109.3,1.60785]
[1644925865450,0.80385,3109.7,3109.4,0.80384]
[1644925865919,0.80385,3109.7,3109.4,0.83351532]
[1644925866621,0.80385,3109.7,3109.4,0.02967532]
[1644925866622,0.8039746,3109.6,3109.4,0.02967532]
[1644925867220,0.92956509,3109.5,3109.4,0.02967532]
[1644925867622,0.92956509,3109.5,3108.8,2.7664026]
[1644925867822,0.92956509,3109.5,3108.9,1.0]
[1644925867823,0.80405,3109.4,3108.9,1.0]
[1644925868025,0.80405,3109.4,3109.1,0.80405]
[1644925868226,0.80405,3109.4,3109.2,0.00347452]
[1644925868227,0.3,3109.3,3109.2,0.00347452]
[1644925869133,1.10415,3109.3,3108.6,1.232]
[1644925869328,1.85238222,3108.9,3108.2,5.28828793]
[1644925869548,1.10425,3108.9,3108.2,10.20528997]
[1644925869744,1.10425,3108.9,3108.2,1.74658997]
[1644925869948,1.6085,3109.0,3108.2,2.96670702]
[1644925870147,1.6085,3109.0,3108.4,0.80424]
[1644925870346,0.80415,3108.8,3108.4,0.80424]
[1644925870646,0.80415,3108.8,3108.4,0.80771518]
[1644925871045,0.80415,3108.8,3108.4,0.00347518]
[1644925871444,0.3,3108.7,3108.2,1.60839]
[1644925871653,0.8042722,3108.5,3108.2,1.60839]
[1644925871846,0.8042722,3108.5,3108.4,0.00347518]
[1644925872045,0.80428,3108.6,3108.4,0.00347518]
[1644925872644,0.80428,3108.6,3108.3,0.80423]
[1644925873045,0.80428,3108.6,3108.3,0.80770526]
[1644925873301,0.3,3108.5,3108.3,0.80770526]
[1644925873500,1.90849,3108.5,3108.3,0.00347526]